fUSD/lending_fUSD_20250519
["ID","MTS","AMOUNT","RATE_DAILY","PERIOD"]
[361576453,1747621833798,-400.0,0.00013698,2]
[361576454,1747621833810,-400.0,0.00013698,2]
[361576455,1747621833821,-400.0,0.00013698,2]
[361576456,1747621833832,-400.0,0.00013698,2]
[361576457,1747621833843,-400.0,0.00013698,2]
[361576458,1747621833854,-400.0,0.00013698,2]
[361576459,1747621833864,-400.0,0.00013698,2]
[361576460,1747621833876,-400.0,0.00013698,2]
[361576461,1747621833886,-400.0,0.00013698,2]
[361576462,1747621833897,-400.0,0.00013698,2]
[361576463,1747621833908,-279.28803132,0.00013698,2]
[361576464,1747621833918,-445.32,0.00013698,2]
[361576465,1747621833929,-400.0,0.00013698,2]
[361576466,1747621833939,-400.0,0.00013698,2]
[361576467,1747621833949,-406.75073157,0.00013698,2]
[361576468,1747621833960,-400.0,0.00013698,2]
[361576469,1747621833970,-400.0,0.00013698,2]
[361576470,1747621833981,-400.0,0.00013698,2]
[361576471,1747621833991,-402.78988407,0.00013698,2]
[361576472,1747621834001,-400.0,0.00013698,2]
[361576473,1747621834011,-400.0,0.00013698,2]
[361576474,1747621834022,-614.38,0.00013698,2]
[361576475,1747621834032,-400.0,0.00013698,2]
[361576476,1747621834042,-400.0,0.00013698,2]
[361576477,1747621834052,-400.19069469,0.00013698,2]
[361576478,1747621834064,-400.0,0.00013698,2]
[361576479,1747621834075,-400.0,0.00013698,2]
[361576480,1747621834085,-403.02731998,0.00013698,2]
[361576481,1747621834095,-402.01404316,0.00013698,2]
[361576482,1747621834106,-400.0,0.00013698,2]
[361576483,1747621834117,-402.00506442,0.00013698,2]
[361576484,1747621834127,-400.0,0.00013698,2]
[361576485,1747621834137,-406.1293589,0.00013698,2]
[361576486,1747621834148,-400.0,0.00013698,2]
[361576487,1747621834158,-400.0,0.00013698,2]
[361576488,1747621834168,-400.0,0.00013698,2]
[361576489,1747621834178,-273.09639392,0.00013698,2]
[361576490,1747621834189,-400.0,0.00013698,2]
[361576491,1747621834199,-400.0,0.00013698,2]
[361576492,1747621834210,-400.0,0.00013698,2]
[361576493,1747621834220,-459.33175766,0.00013698,2]
[361576494,1747621834231,-400.0,0.00013698,2]
[361576495,1747621834241,-400.0,0.00013698,2]
[361576496,1747621834251,-400.0,0.00013698,2]
[361576497,1747621834262,-543.81,0.00013698,2]
[361576498,1747621834272,-400.0,0.00013698,2]
[361576499,1747621834282,-400.0,0.00013698,2]
[361576500,1747621834293,-400.0,0.00013698,2]
[361576501,1747621834305,-400.0,0.00013698,2]
[361576502,1747621834316,-400.0,0.00013698,2]
[361576503,1747621834326,-400.0,0.00013698,2]
[361576504,1747621834336,-400.0,0.00013698,2]
[361576505,1747621834346,-400.0,0.00013698,2]
[361576506,1747621834356,-400.0,0.00013698,2]
[361576507,1747621834367,-403.17044233,0.00013698,2]
[361576508,1747621834377,-400.0,0.00013698,2]
[361576509,1747621834387,-400.0,0.00013698,2]
[361576510,1747621834398,-400.0,0.00013698,2]
[361576511,1747621834408,-400.0,0.00013698,2]
[361576512,1747621834418,-404.15555055,0.00013698,2]
[361576513,1747621834429,-400.0,0.00013698,2]
[361576514,1747621834439,-661.73,0.00013698,2]
[361576515,1747621834449,-518.61,0.00013698,2]
[361576516,1747621834459,-400.0,0.00013698,2]
[361576517,1747621835042,-400.0,0.00013698,2]
[361576518,1747621835062,-400.0,0.00013698,2]
[361576519,1747621835071,-402.52200207,0.00013698,2]
[361576520,1747621835081,-400.0,0.00013698,2]
[361576521,1747621835091,-471.38,0.00013698,2]
[361576522,1747621835100,-484.77,0.00013698,2]
[361576523,1747621835110,-400.0,0.00013698,2]
[361576524,1747621835119,-400.0,0.00013698,2]
[361576525,1747621835127,-400.0,0.00013698,2]
[361576526,1747621835137,-402.89000418,0.00013698,2]
[361576527,1747621835146,-1333.7,0.00013698,2]
[361576528,1747621835155,-319.27208758,0.00013698,2]
[361576529,1747621835164,-400.0,0.00013698,2]
[361576530,1747621835173,-328.3027101,0.00013698,2]
[361576531,1747621835182,-233.48866985,0.00013698,2]
[361576532,1747621835191,-400.0,0.00013698,2]
[361576533,1747621835200,-400.0,0.00013698,2]
[361576534,1747621835210,-400.0,0.00013698,2]
[361576535,1747621835221,-400.0,0.00013698,2]
[361576536,1747621835231,-400.0,0.00013698,2]
[361576537,1747621835242,-400.0,0.00013698,2]
[361576538,1747621835254,-757.38,0.00013698,2]
[361576539,1747621835264,-400.0,0.00013698,2]
[361576540,1747621835274,-400.0,0.00013698,2]
[361576541,1747621835283,-400.0,0.00013698,2]
[361576542,1747621835292,-400.0,0.00013698,2]
[361576543,1747621835301,-400.25545853,0.00013698,2]
[361576544,1747621835311,-404.23925324,0.00013698,2]
[361576545,1747621835320,-400.0,0.00013698,2]
[361576546,1747621835329,-489.29,0.00013698,2]
[361576547,1747621835338,-425.88,0.00013698,2]
[361576548,1747621835347,-246.78905795,0.00013698,2]
[361576549,1747621835356,-376.93727424,0.00013698,2]
[361576550,1747621835365,-400.0,0.00013698,2]
[361576551,1747621835374,-400.0,0.00013698,2]
[361576552,1747621835383,-400.0,0.00013698,2]
[361576553,1747621835393,-160.85476986,0.00013698,2]
[361576554,1747621835403,-400.0,0.00013698,2]
[361576555,1747621835414,-400.0,0.00013698,2]
[361576556,1747621835422,-400.0,0.00013698,2]
[361576557,1747621835431,-400.0,0.00013698,2]
[361576558,1747621835440,-400.0,0.00013698,2]
[361576559,1747621835449,-400.0,0.00013698,2]
[361576560,1747621835458,-260.70948438,0.00013698,2]
[361576561,1747621835467,-401.50952533,0.00013698,2]
[361576562,1747621835476,-400.0,0.00013698,2]
[361576563,1747621835485,-400.0,0.00013698,2]
[361576564,1747621835494,-400.0,0.00013698,2]
[361576565,1747621835503,-400.0,0.00013698,2]
[361576566,1747621835512,-400.0,0.00013698,2]
[361576567,1747621835521,-405.03568082,0.00013698,2]
[361576568,1747621835531,-549.87,0.00013698,2]
[361576569,1747621835540,-400.0,0.00013698,2]
[361576570,1747621835549,-401.96875823,0.00013698,2]
[361576571,1747621835561,-1028.9,0.00013698,2]
[361576572,1747621835571,-400.31407804,0.00013698,2]
[361576573,1747621835582,-400.0,0.00013698,2]
[361576574,1747621835592,-400.0,0.00013698,2]
[361576575,1747621835601,-400.0,0.00013698,2]
[361576576,1747621835610,-400.0,0.00013698,2]
[361576577,1747621835621,-400.0,0.00013698,2]
[361576578,1747621835630,-401.72406809,0.00013698,2]
[361576579,1747621835639,-400.0,0.00013698,2]
[361576580,1747621835650,-406.46099326,0.00013698,2]
[361576581,1747621835659,-400.0,0.00013698,2]
[361576582,1747621835668,-400.0,0.00013698,2]
[361576583,1747621835677,-400.0,0.00013698,2]
[361576584,1747621835686,-400.0,0.00013698,2]
[361576585,1747621835695,-597.83,0.00013698,2]
[361576586,1747621835704,-400.0,0.00013698,2]
[361576587,1747621835713,-400.0,0.00013698,2]
[361576588,1747621835722,-400.0,0.00013698,2]
[361576589,1747621835731,-400.0,0.00013698,2]
[361576590,1747621835741,-400.0,0.00013698,2]
[361576591,1747621835750,-400.0,0.00013698,2]
[361576592,1747621835759,-400.0,0.00013698,2]
[361576593,1747621835768,-400.0,0.00013698,2]
[361576594,1747621835777,-400.0,0.00013698,2]
[361576595,1747621835786,-400.0,0.00013698,2]
[361576596,1747621835795,-400.0,0.00013698,2]
[361576597,1747621835804,-400.0,0.00013698,2]
[361576598,1747621835814,-410.80530954,0.00013698,2]
[361576599,1747621835823,-400.0,0.00013698,2]
[361576600,1747621835831,-400.0,0.00013698,2]
[361576601,1747621835840,-400.0,0.00013698,2]
[361576602,1747621835849,-693.57,0.00013698,2]
[361576603,1747621835859,-400.0,0.00013698,2]
[361576604,1747621835867,-400.0,0.00013698,2]
[361576605,1747621835877,-1024.07,0.00013698,2]
[361576606,1747621835886,-403.66128293,0.00013698,2]
[361576607,1747621835895,-401.23744165,0.00013698,2]
[361576608,1747621835903,-400.0,0.00013698,2]
[361576609,1747621835913,-400.0,0.00013698,2]
[361576610,1747621835922,-400.0,0.00013698,2]
[361576611,1747621835931,-400.0,0.00013698,2]
[361576612,1747621835940,-400.0,0.00013698,2]
[361576613,1747621835948,-400.0,0.00013698,2]
[361576614,1747621835958,-400.0,0.00013698,2]
[361576615,1747621835967,-402.26324548,0.00013698,2]
[361576616,1747621835976,-400.0,0.00013698,2]
[361576617,1747621835986,-821.82,0.00013698,2]
[361576618,1747621835995,-501.51533511,0.00013698,2]
[361576619,1747621836005,-514.84230697,0.00013698,2]
[361576620,1747621836014,-400.0,0.00013698,2]
[361576621,1747621836023,-400.0,0.00013698,2]
[361576622,1747621836032,-534.73,0.00013698,2]
[361576623,1747621836041,-400.0,0.00013698,2]
[361576624,1747621836051,-1298.52,0.00013698,2]
[361576625,1747621836060,-400.0,0.00013698,2]
[361576626,1747621836070,-400.0,0.00013698,2]
[361576627,1747621836079,-400.0,0.00013698,2]
[361576628,1747621836088,-400.0,0.00013698,2]
[361576629,1747621836096,-400.0,0.00013698,2]
[361576630,1747621836106,-400.0,0.00013698,2]
[361576631,1747621836115,-414.35407907,0.00013698,2]
[361576632,1747621836124,-400.0,0.00013698,2]
[361576633,1747621836133,-994.84,0.00013698,2]
[361576634,1747621836143,-402.55905532,0.00013698,2]
[361576635,1747621836152,-400.0,0.00013698,2]
[361576636,1747621836162,-400.0,0.00013698,2]
[361576637,1747621836171,-1157.33,0.00013698,2]
[361576638,1747621836180,-400.0,0.00013698,2]
[361576639,1747621836190,-499.72,0.00013698,2]
[361576640,1747621836199,-228.16880741,0.00013698,2]
[361576641,1747621836208,-767.51,0.00013698,2]
[361576642,1747621836217,-400.0,0.00013698,2]
[361576643,1747621836225,-400.0,0.00013698,2]
[361576644,1747621836235,-400.0,0.00013698,2]
[361576645,1747621836243,-400.0,0.00013698,2]
[361576646,1747621836252,-921.31,0.00013698,2]
[361576647,1747621836261,-462.07165366,0.00013698,2]
[361576648,1747621836270,-400.0,0.00013698,2]
[361576649,1747621836278,-400.0,0.00013698,2]
[361576650,1747621836288,-400.0,0.00013698,2]
[361576651,1747621836299,-400.0,0.00013698,2]
[361576652,1747621836308,-500.91018979,0.00013698,2]
[361576653,1747621836317,-859.14,0.00013698,2]
[361576654,1747621836326,-400.0,0.00013698,2]
[361576655,1747621836335,-400.0,0.00013698,2]
[361576656,1747621836344,-400.0,0.00013698,2]
[361576657,1747621836354,-400.0,0.00013698,2]
[361576658,1747621836366,-401.26581884,0.00013698,2]
[361576659,1747621836376,-558.8,0.00013698,2]
[361576660,1747621836386,-400.0,0.00013698,2]
[361576661,1747621836396,-877.9,0.00013698,2]
[361576662,1747621836406,-400.0,0.00013698,2]
[361576663,1747621836415,-400.0,0.00013698,2]
[361576664,1747621836425,-401.25360387,0.00013698,2]
[361576665,1747621836434,-400.0,0.00013698,2]
[361576666,1747621836443,-400.98634136,0.00013698,2]
[361576667,1747621836452,-478.82,0.00013698,2]
[361576668,1747621836461,-400.0,0.00013698,2]
[361576669,1747621836470,-507.52,0.00013698,2]
[361576670,1747621836479,-633.6,0.00013698,2]
[361576671,1747621836490,-400.0,0.00013698,2]
[361576672,1747621836502,-400.0,0.00013698,2]
[361576673,1747621836511,-400.0,0.00013698,2]
[361576674,1747621836520,-459.62,0.00013698,2]
[361576675,1747621836529,-404.66164181,0.00013698,2]
[361576676,1747621836538,-405.48400465,0.00013698,2]
[361576677,1747621836547,-400.0,0.00013698,2]
[361576678,1747621836556,-632.49,0.00013698,2]
[361576679,1747621836565,-485.69,0.00013698,2]
[361576680,1747621836576,-400.0,0.00013698,2]
[361576681,1747621836585,-400.0,0.00013698,2]
[361576682,1747621836594,-1000.0,0.00013698,2]
[361576683,1747621836604,-400.0,0.00013698,2]
[361576684,1747621836614,-400.0,0.00013698,2]
[361576685,1747621836627,-520.76,0.00013698,2]
[361576686,1747621836638,-400.0,0.00013698,2]
[361576687,1747621836650,-652.72,0.00013698,2]
[361576688,1747621836660,-719.14,0.00013698,2]
[361576689,1747621836671,-400.0,0.00013698,2]
[361576690,1747621836682,-422.51055954,0.00013698,2]
[361576691,1747621836694,-459.14,0.00013698,2]
[361576692,1747621836705,-181.61789515,0.00013698,2]
[361576693,1747621836717,-400.0,0.00013698,2]
[361576694,1747621836729,-406.59802123,0.00013698,2]
[361576695,1747621836738,-508.65,0.00013698,2]
[361576696,1747621836747,-400.34667071,0.00013698,2]
[361576697,1747621836756,-400.0,0.00013698,2]
[361576698,1747621836767,-865.6,0.00013698,2]
[361576699,1747621836776,-204.09179802,0.00013698,2]
[361576700,1747621836785,-400.0,0.00013698,2]
[361576701,1747621836794,-400.0,0.00013698,2]
[361576702,1747621836803,-400.0,0.00013698,2]
[361576703,1747621836813,-400.0,0.00013698,2]
[361576704,1747621836822,-400.0,0.00013698,2]
[361576705,1747621836831,-466.39,0.00013698,2]
[361576706,1747621836841,-410.11518594,0.00013698,2]
[361576707,1747621836850,-500.0,0.00013698,2]
[361576708,1747621836859,-585.67421023,0.00013698,2]
[361576709,1747621836868,-506.4325577,0.00013698,2]
[361576710,1747621836877,-418.29,0.00013698,2]
[361576711,1747621836886,-400.0,0.00013698,2]
[361576712,1747621836895,-400.0,0.00013698,2]
[361576713,1747621836904,-400.0,0.00013698,2]
[361576714,1747621836914,-583.79,0.00013698,2]
[361576715,1747621836923,-400.0,0.00013698,2]
[361576716,1747621836933,-233.19157476,0.00013698,2]
[361576717,1747621836942,-400.0,0.00013698,2]
[361576718,1747621836954,-809.57,0.00013698,2]
[361576719,1747621836963,-633.12,0.00013698,2]
[361576720,1747621836972,-403.48951777,0.00013698,2]
[361576721,1747621836982,-404.55081504,0.00013698,2]
[361576722,1747621836991,-1988.76421146,0.00013698,2]
[361576749,1747621839218,-1024.83225472,0.00013598,2]
[361576750,1747621839227,-1208.86889537,0.00013698,2]
[361576751,1747621839236,-400.0,0.00013698,2]
[361576752,1747621839245,-608.86,0.00013698,2]
[361576753,1747621839255,-400.0,0.00013698,2]
[361576754,1747621839265,-288.48708954,0.00013698,2]
[361576755,1747621839274,-400.0,0.00013698,2]
[361576756,1747621839283,-875.48,0.00013698,2]
[361576757,1747621839292,-428.79,0.00013698,2]
[361576758,1747621839302,-633.79462833,0.00013698,2]
[361576759,1747621839313,-250.42537167,0.00013698,2]
[361576760,1747621839322,-400.0,0.00013698,2]
[361576761,1747621839331,-500.0,0.00013698,2]
[361576762,1747621839342,-500.0,0.00013698,2]
[361576763,1747621839351,-500.0,0.00013698,2]
[361576764,1747621839360,-400.0,0.00013698,2]
[361576765,1747621839370,-425.68710645,0.00013698,2]
[361576766,1747621839379,-510.82,0.00013698,2]
[361576767,1747621839388,-400.0,0.00013698,2]
[361576768,1747621839397,-1376.72,0.00013698,2]
[361576769,1747621839406,-434.0,0.00013698,2]
[361576770,1747621839415,-404.7632843,0.00013698,2]
[361576771,1747621839424,-400.0,0.00013698,2]
[361576772,1747621839433,-1139.96,0.00013698,2]
[361576773,1747621839442,-399.00221454,0.00013698,2]
[361576774,1747621839453,-400.0,0.00013698,2]
[361576775,1747621839462,-401.18692361,0.00013698,2]
[361576776,1747621839472,-400.0,0.00013698,2]
[361576777,1747621839483,-409.31107606,0.00013698,2]
[361576778,1747621839492,-400.0,0.00013698,2]
[361576780,1747621839501,-526.15264166,0.00013698,2]
[361576781,1747621839510,-623.37,0.00013698,2]
[361576783,1747621839520,-400.0,0.00013698,2]
[361576784,1747621839530,-513.45,0.00013698,2]
[361576785,1747621839540,-496.69,0.00013698,2]
[361576786,1747621839549,-410.98,0.00013698,2]
[361576787,1747621839558,-1052.56,0.00013698,2]
[361576788,1747621839568,-400.0,0.00013698,2]
[361576789,1747621839581,-1129.85,0.00013698,2]
[361576790,1747621839591,-400.0,0.00013698,2]
[361576791,1747621839600,-400.0,0.00013698,2]
[361576792,1747621839610,-544.32,0.00013698,2]
[361576793,1747621839619,-400.0,0.00013698,2]
[361576794,1747621839629,-213.30783296,0.00013698,2]
[361576795,1747621839638,-400.0,0.00013698,2]
[361576796,1747621839648,-400.0,0.00013698,2]
[361576797,1747621839660,-476.45,0.00013698,2]
[361576798,1747621839670,-400.0,0.00013698,2]
[361576799,1747621839682,-772.33,0.00013698,2]
[361576800,1747621839696,-401.42506311,0.00013698,2]
[361576801,1747621839707,-763.52,0.00013698,2]
[361576802,1747621839718,-614.55,0.00013698,2]
[361576803,1747621839727,-400.0,0.00013698,2]
[361576804,1747621839736,-487.69,0.00013698,2]
[361576805,1747621839747,-400.0,0.00013698,2]
[361576806,1747621839758,-400.0,0.00013698,2]
[361576807,1747621839768,-400.0,0.00013698,2]
[361576808,1747621839779,-408.42842385,0.00013698,2]
[361576809,1747621839789,-400.0,0.00013698,2]
[361576810,1747621839798,-1455.95,0.00013698,2]
[361576811,1747621839809,-538.7,0.00013698,2]
[361576812,1747621839818,-422.96,0.00013698,2]
[361576813,1747621839827,-400.0,0.00013698,2]
[361576814,1747621839837,-400.0,0.00013698,2]
[361576815,1747621839847,-487.31,0.00013698,2]
[361576816,1747621839858,-927.65,0.00013698,2]
[361576817,1747621839867,-688.09,0.00013698,2]
[361576818,1747621839878,-466.38,0.00013698,2]
[361576819,1747621839888,-400.0,0.00013698,2]
[361576820,1747621839899,-400.0,0.00013698,2]
[361576821,1747621839909,-400.0,0.00013698,2]
[361576822,1747621839920,-400.0,0.00013698,2]
[361576823,1747621839930,-400.0,0.00013698,2]
[361576824,1747621839940,-400.0,0.00013698,2]
[361576825,1747621839950,-400.0,0.00013698,2]
[361576826,1747621839961,-400.0,0.00013698,2]
[361576827,1747621839971,-1126.32,0.00013698,2]
[361576828,1747621839980,-680.64,0.00013698,2]
[361576829,1747621839990,-400.0,0.00013698,2]
[361576830,1747621839999,-512.77,0.00013698,2]
[361576831,1747621840009,-400.0,0.00013698,2]
[361576832,1747621840018,-474.33808855,0.00013698,2]
[361576833,1747621840029,-352.03425991,0.00013698,2]
[361576834,1747621840040,-1198.59,0.00013698,2]
[361576835,1747621840050,-737.43,0.00013698,2]
[361576836,1747621840060,-400.0,0.00013698,2]
[361576837,1747621840069,-400.0,0.00013698,2]
[361576838,1747621840078,-445.57,0.00013698,2]
[361576839,1747621840088,-548.95,0.00013698,2]
[361576840,1747621840098,-400.0,0.00013698,2]
[361576841,1747621840109,-445.79697911,0.00013698,2]
[361576842,1747621840119,-401.09969137,0.00013698,2]
[361576843,1747621840133,-541.34,0.00013698,2]
[361576844,1747621840143,-714.06,0.00013698,2]
[361576845,1747621840153,-400.0,0.00013698,2]
[361576846,1747621840162,-400.0,0.00013698,2]
[361576847,1747621840171,-402.0663083,0.00013698,2]
[361576848,1747621840180,-448.29785865,0.00013698,2]
[361576849,1747621840189,-400.0,0.00013698,2]
[361576850,1747621840198,-401.45784222,0.00013698,2]
[361576851,1747621840207,-950.65,0.00013698,2]
[361576852,1747621840217,-1241.3,0.00013698,2]
[361576853,1747621840226,-517.9,0.00013698,2]
[361576854,1747621840306,-600.91,0.00013698,2]
[361576855,1747621840316,-400.91900397,0.00013698,2]
[361576856,1747621840325,-984.52,0.00013698,2]
[361576857,1747621840334,-420.76589711,0.00013698,2]
[361576858,1747621840345,-400.0,0.00013698,2]
[361576859,1747621840356,-400.0,0.00013698,2]
[361576860,1747621840365,-411.30204891,0.00013698,2]
[361576861,1747621840374,-400.0,0.00013698,2]
[361576862,1747621840383,-459.84,0.00013698,2]
[361576863,1747621840392,-402.16602146,0.00013698,2]
[361576864,1747621840400,-494.8001522,0.00013698,2]
[361576865,1747621840409,-634.91,0.00013698,2]
[361576866,1747621840418,-406.4459924,0.00013698,2]
[361576868,1747621840428,-400.0,0.00013698,2]
[361576870,1747621840438,-1247.64,0.00013698,2]
[361576871,1747621840447,-400.0,0.00013698,2]
[361576872,1747621840456,-1356.91,0.00013698,2]
[361576873,1747621840467,-580.47,0.00013698,2]
[361576874,1747621840479,-1014.42,0.00013698,2]
[361576875,1747621840488,-400.0,0.00013698,2]
[361576876,1747621840499,-401.02029105,0.00013698,2]
[361576877,1747621840509,-400.0,0.00013698,2]
[361576878,1747621840519,-674.82,0.00013698,2]
[361576879,1747621840529,-400.0,0.00013698,2]
[361576880,1747621840539,-400.0,0.00013698,2]
[361576881,1747621840550,-600.32,0.00013698,2]
[361576882,1747621840560,-1009.47,0.00013698,2]
[361576883,1747621840569,-844.42,0.00013698,2]
[361576884,1747621840581,-400.0,0.00013698,2]
[361576885,1747621840591,-401.31149845,0.00013698,2]
[361576886,1747621840600,-400.0,0.00013698,2]
[361576887,1747621840611,-400.0,0.00013698,2]
[361576888,1747621840622,-2145.08,0.00013698,2]
[361576889,1747621840631,-400.0,0.00013698,2]
[361576890,1747621840641,-448.93270365,0.00013698,2]
[361576891,1747621840651,-1349.8,0.00013698,2]
[361576892,1747621840661,-408.10029658,0.00013698,2]
[361576893,1747621840670,-904.78,0.00013698,2]
[361576894,1747621840678,-400.0,0.00013698,2]
[361576895,1747621840687,-469.04,0.00013698,2]
[361576896,1747621840696,-260.629079,0.00013698,2]
[361576897,1747621840748,-308.740921,0.00013698,2]
[361576898,1747621840757,-400.0,0.00013698,2]
[361576899,1747621840766,-324.67508506,0.00013698,2]
[361576900,1747621840788,-75.32491494,0.00013698,2]
[361576901,1747621840797,-222.67208321,0.00013698,2]
[361576902,1747621840808,-178.57595476,0.00013698,2]
[361576903,1747621840817,-400.0,0.00013698,2]
[361576904,1747621840828,-193.89045435,0.00013698,2]
[361576905,1747621840840,-206.10954565,0.00013698,2]
[361576906,1747621840848,-400.0,0.00013698,2]
[361576907,1747621840857,-400.0,0.00013698,2]
[361576908,1747621840867,-400.0,0.00013698,2]
[361576909,1747621840879,-400.0,0.00013698,2]
[361576910,1747621840890,-403.02319837,0.00013698,2]
[361576911,1747621840900,-442.86,0.00013698,2]
[361576912,1747621840910,-400.0,0.00013698,2]
[361576913,1747621840920,-400.0,0.00013698,2]
[361576914,1747621840929,-401.04565846,0.00013698,2]
[361576915,1747621840939,-400.0,0.00013698,2]
[361576916,1747621840948,-400.0,0.00013698,2]
[361576917,1747621840957,-884.41,0.00013698,2]
[361576918,1747621840967,-400.14891288,0.00013698,2]
[361576919,1747621840978,-487.93,0.00013698,2]
[361576920,1747621840987,-509.22,0.00013698,2]
[361576921,1747621840997,-400.0,0.00013698,2]
[361576922,1747621841005,-400.0,0.00013698,2]
[361576923,1747621841016,-409.38362072,0.00013698,2]
[361576924,1747621841025,-403.09285762,0.00013698,2]
[361576925,1747621841034,-400.0,0.00013698,2]
[361576926,1747621841044,-400.0,0.00013698,2]
[361576927,1747621841053,-400.0,0.00013698,2]
[361576928,1747621841062,-1000.9,0.00013698,2]
[361576929,1747621841071,-641.32,0.00013698,2]
[361576930,1747621841080,-525.15,0.00013698,2]
[361576931,1747621841089,-400.0,0.00013698,2]
[361576932,1747621841099,-502.39126886,0.00013698,2]
[361576933,1747621841110,-508.32,0.00013698,2]
[361576934,1747621841119,-400.0,0.00013698,2]
[361576935,1747621841128,-401.90098463,0.00013698,2]
[361576936,1747621841138,-400.0,0.00013698,2]
[361576937,1747621841147,-401.67731885,0.00013698,2]
[361576938,1747621841156,-400.0,0.00013698,2]
[361576939,1747621841166,-527.35,0.00013698,2]
[361576940,1747621841175,-400.0,0.00013698,2]
[361576941,1747621841184,-802.18,0.00013698,2]
[361576942,1747621841194,-400.0,0.00013698,2]
[361576943,1747621841204,-400.0,0.00013698,2]
[361576944,1747621841215,-535.72,0.00013698,2]
[361576945,1747621841227,-402.06630725,0.00013698,2]
[361576946,1747621841239,-1136.65,0.00013698,2]
[361576947,1747621841250,-484.52,0.00013698,2]
[361576948,1747621841260,-1743.83,0.00013698,2]
[361576949,1747621841270,-1025.73,0.00013698,2]
[361576950,1747621841279,-401.3478798,0.00013698,2]
[361576951,1747621841288,-390.90981501,0.00013698,2]
[361576952,1747621841300,-400.0,0.00013698,2]
[361576953,1747621841310,-985.17,0.00013698,2]
[361576954,1747621841320,-403.80813653,0.00013698,2]
[361576955,1747621841330,-400.0,0.00013698,2]
[361576956,1747621841339,-400.0,0.00013698,2]
[361576957,1747621841348,-400.0,0.00013698,2]
[361576958,1747621841359,-400.0,0.00013698,2]
[361576959,1747621841368,-400.0,0.00013698,2]
[361576960,1747621841378,-412.97,0.00013698,2]
[361576961,1747621841387,-868.89,0.00013698,2]
[361576962,1747621841397,-400.0,0.00013698,2]
[361576963,1747621841406,-402.25060091,0.00013698,2]
[361576964,1747621841414,-400.0,0.00013698,2]
[361576965,1747621841423,-400.0,0.00013698,2]
[361576966,1747621841434,-380.0,0.00013698,2]
[361576967,1747621841443,-358.54709446,0.00013698,2]
[361576968,1747621841531,-41.45290554,0.00013698,2]
[361576969,1747621841542,-400.0,0.00013698,2]
[361576970,1747621841551,-400.0,0.00013698,2]
[361576971,1747621841562,-400.0,0.00013698,2]
[361576972,1747621841572,-400.0,0.00013698,2]
[361576973,1747621841584,-549.04,0.00013698,2]
[361576974,1747621841593,-400.0,0.00013698,2]
[361576975,1747621841603,-400.0,0.00013698,2]
[361576976,1747621841612,-402.05327015,0.00013698,2]
[361576977,1747621841622,-861.44,0.00013698,2]
[361576978,1747621841631,-1153.21,0.00013698,2]
[361576979,1747621841640,-714.94,0.00013698,2]
[361576980,1747621841650,-403.08576958,0.00013698,2]
[361576981,1747621841660,-400.0,0.00013698,2]
[361576982,1747621841669,-400.0,0.00013698,2]